fUST/lending_fUST_20251213
["ID","MTS","AMOUNT","RATE_DAILY","PERIOD"]
[398389389,1765577442343,-500.0,0.0001489,7]
[398389390,1765577442353,-500.0,0.0001489,7]
[398389391,1765577442362,-500.0,0.0001489,7]
[398389392,1765577442373,-500.0,0.0001489,7]
[398389393,1765577442494,-500.0,0.0001489,7]
[398389394,1765577442503,-500.0,0.0001489,7]
[398389395,1765577442512,-500.0,0.0001489,7]
[398389396,1765577442521,-500.0,0.0001489,7]
[398389397,1765577442530,-500.0,0.0001489,7]
[398389398,1765577442539,-500.0,0.0001489,7]
[398389399,1765577442549,-500.0,0.0001489,7]
[398389400,1765577442558,-500.0,0.0001489,7]
[398389401,1765577442567,-500.0,0.0001489,7]
[398389402,1765577442576,-500.0,0.0001489,7]
[398389403,1765577442585,-500.0,0.0001489,7]
[398389404,1765577442594,-500.0,0.0001489,7]
[398389405,1765577442604,-500.0,0.0001489,7]
[398389406,1765577442613,-500.0,0.0001489,7]
[398389407,1765577442623,-290.99,0.0001489,7]
[398389408,1765577442631,-1405.7607015,0.00014892,2]
[398389409,1765577442640,-730.0,0.00014901,2]
[398389410,1765577442650,-176.6817441,0.00014906,2]
[398389411,1765577442659,-1699.0,0.00014908,2]
[398389412,1765577442671,-2000.0,0.00014916,2]
[398389413,1765577442681,-277.76947787,0.00014916,2]
[398389414,1765577442691,-2000.0,0.00014916,2]
[398389415,1765577442701,-2000.0,0.00014916,2]
[398389416,1765577442710,-2000.0,0.00014916,2]
[398389417,1765577442723,-175.27112747,0.00014971,2]
[398389418,1765577442734,-688.49839244,0.00014975,2]
[398389419,1765577442744,-730.0,0.00015038,2]
[398389420,1765577442760,-195.053426,0.00015068,2]
[398389421,1765577442770,-800.0,0.00015068,2]
[398389422,1765577442779,-1670.92327852,0.00015106,2]
[398389423,1765577442788,-100000.0,0.00015174,2]
[398389424,1765577442798,-730.0,0.00015175,2]
[398389425,1765577442807,-730.0,0.00015312,2]
[398389426,1765577442816,-1200.0,0.00015316,2]
[398389427,1765577442825,-460.0,0.00015342,2]
[398389428,1765577442835,-2000.0,0.00015342,2]
[398389429,1765577442844,-2000.0,0.00015342,2]
[398389430,1765577442854,-2000.0,0.00015342,2]
[398389431,1765577442863,-730.0,0.00015449,2]
[398389432,1765577442872,-1699.0,0.00015456,2]
[398389433,1765577442881,-2500.0,0.00015464,2]
[398389434,1765577442890,-2500.0,0.00015464,2]
[398389435,1765577442899,-2500.0,0.00015464,2]
[398389436,1765577442909,-2500.0,0.00015464,2]
[398389438,1765577442918,-713.97283296,0.00015523,2]
[398389439,1765577442927,-730.0,0.00015586,2]
[398389440,1765577442936,-151.0,0.000157,2]
[398389441,1765577442945,-730.0,0.00015723,2]
[398389443,1765577442958,-730.0,0.0001586,2]
[398389445,1765577442968,-1500.0,0.00015864,2]
[398389447,1765577442977,-528.66867974,0.0001587,2]
[398389448,1765577442986,-560.0,0.0001589,2]
[398389449,1765577442996,-2500.0,0.0001589,2]
[398389450,1765577443005,-2500.0,0.0001589,2]
[398389451,1765577443015,-2500.0,0.0001589,2]
[398389452,1765577443024,-160.43557245,0.000159,2]
[398389453,1765577443034,-160.43557243,0.000159,2]
[398389454,1765577443045,-204.0,0.0001593,2]
[398389455,1765577443055,-730.0,0.00015997,2]
[398389456,1765577443066,-3000.0,0.00016012,2]
[398389457,1765577443076,-3000.0,0.00016012,2]
[398389458,1765577443087,-3000.0,0.00016012,2]
[398389459,1765577443098,-3000.0,0.00016012,2]
[398389460,1765577443109,-771.0,0.00016036,2]
[398389461,1765577443119,-1180.0,0.00016036,2]
[398389462,1765577443129,-740.38982778,0.00016071,2]
[398389463,1765577443140,-151.0,0.000161,2]
[398389464,1765577443150,-730.0,0.00016134,2]
[398389465,1765577443160,-500.0,0.00016152,2]
[398389466,1765577443170,-1600.0,0.00016164,2]
[398389467,1765577443183,-160.43557243,0.000162,2]
[398389468,1765577443194,-8631.81052035,0.0001625,2]
[398389469,1765577443204,-730.0,0.00016271,2]
[398389470,1765577443215,-730.0,0.00016408,2]
[398389471,1765577443224,-1800.0,0.00016412,2]
[398389472,1765577443235,-660.0,0.00016438,2]
[398389473,1765577443245,-500.0,0.00016438,2]
[398389474,1765577443256,-590.7960953,0.00016438,2]
[398389475,1765577443266,-154.37656047,0.00016438,2]
[398389476,1765577443289,-500.0,0.00016438,2]
[398389477,1765577443309,-151.0,0.00016438,2]
[398389478,1765577443328,-151.0,0.00016438,2]
[398389479,1765577443349,-151.0,0.00016438,2]
[398389480,1765577443367,-151.0,0.00016438,2]
[398389481,1765577443385,-151.0,0.00016438,2]
[398389482,1765577443405,-151.0,0.00016438,2]
[398389483,1765577443420,-151.0,0.00016438,2]
[398389484,1765577443441,-151.0,0.00016438,2]
[398389485,1765577443461,-151.0,0.00016438,2]
[398389486,1765577443478,-151.0,0.00016438,2]
[398389487,1765577443492,-151.0,0.00016438,2]
[398389488,1765577443512,-151.0,0.00016438,2]
[398389489,1765577443528,-151.0,0.00016438,2]
[398389490,1765577443544,-151.0,0.00016438,2]
[398389491,1765577443559,-151.0,0.00016438,2]
[398389492,1765577443574,-151.0,0.00016438,2]
[398389493,1765577443590,-226.508764,0.00016438,2]
[398389494,1765577443605,-431.177077,0.00016438,2]
[398389495,1765577443620,-431.177077,0.00016438,2]
[398389496,1765577443639,-431.177077,0.00016438,2]
[398389497,1765577443654,-431.177077,0.00016438,2]
[398389498,1765577443670,-431.177077,0.00016438,2]
[398389499,1765577443685,-431.177077,0.00016438,2]
[398389500,1765577443702,-431.177077,0.00016438,2]
[398389501,1765577443716,-431.177077,0.00016438,2]
[398389503,1765577443731,-431.177077,0.00016438,2]
[398389504,1765577443746,-431.177077,0.00016438,2]
[398389505,1765577443760,-431.177077,0.00016438,2]
[398389506,1765577443775,-431.177077,0.00016438,2]
[398389507,1765577443789,-431.177077,0.00016438,2]
[398389508,1765577443804,-431.177077,0.00016438,2]
[398389509,1765577443819,-431.177077,0.00016438,2]
[398389510,1765577443834,-431.177077,0.00016438,2]
[398389511,1765577443849,-431.177077,0.00016438,2]
[398389512,1765577443864,-431.177077,0.00016438,2]
[398389513,1765577443879,-431.177077,0.00016438,2]
[398389514,1765577443895,-431.177075,0.00016438,2]
[398389515,1765577443909,-672.132359,0.00016438,2]
[398389516,1765577443925,-672.132359,0.00016438,2]
[398389517,1765577443944,-672.132359,0.00016438,2]
[398389518,1765577443958,-672.132359,0.00016438,2]
[398389519,1765577443973,-672.132359,0.00016438,2]
[398389520,1765577443989,-672.132359,0.00016438,2]
[398389521,1765577444003,-672.132359,0.00016438,2]
[398389522,1765577444020,-672.132359,0.00016438,2]
[398389523,1765577444034,-672.132359,0.00016438,2]
[398389524,1765577444048,-672.132359,0.00016438,2]
[398389525,1765577444063,-672.132359,0.00016438,2]
[398389526,1765577444077,-672.132359,0.00016438,2]
[398389527,1765577444093,-672.132359,0.00016438,2]
[398389528,1765577444108,-672.132359,0.00016438,2]
[398389529,1765577444123,-672.132359,0.00016438,2]
[398389530,1765577444139,-672.132359,0.00016438,2]
[398389531,1765577444154,-672.132359,0.00016438,2]
[398389532,1765577444168,-672.132359,0.00016438,2]
[398389533,1765577444184,-672.132359,0.00016438,2]
[398389534,1765577444201,-672.13236,0.00016438,2]
[398389535,1765577444219,-151.0,0.00016438,2]
[398389536,1765577444237,-151.0,0.00016438,2]
[398389537,1765577444256,-151.0,0.00016438,2]
[398389538,1765577444273,-151.0,0.00016438,2]
[398389539,1765577444292,-151.0,0.00016438,2]
[398389540,1765577444309,-151.0,0.00016438,2]
[398389541,1765577444326,-151.0,0.00016438,2]
[398389542,1765577444343,-151.0,0.00016438,2]
[398389543,1765577444360,-151.0,0.00016438,2]
[398389544,1765577444375,-151.0,0.00016438,2]
[398389545,1765577444392,-151.0,0.00016438,2]
[398389546,1765577444407,-151.0,0.00016438,2]
[398389547,1765577444422,-151.0,0.00016438,2]
[398389548,1765577444441,-151.0,0.00016438,2]
[398389549,1765577444451,-151.0,0.00016438,2]
[398389550,1765577444461,-151.0,0.00016438,2]
[398389551,1765577444470,-151.0,0.00016438,2]
[398389552,1765577444480,-167.086035,0.00016438,2]
[398389553,1765577444489,-163.59785044,0.00016438,2]
[398389554,1765577444708,-3000.0,0.00016438,2]
[398389555,1765577444729,-3000.0,0.00016438,2]
[398389556,1765577444739,-3000.0,0.00016438,2]
[398389557,1765577444749,-259.10838795,0.00016438,2]
[398389558,1765577444761,-181.88,0.0001644,2]
[398389559,1765577444770,-181.88,0.0001644,2]
[398389560,1765577444780,-181.88,0.0001644,2]
[398389561,1765577444789,-181.88,0.0001644,2]
[398389562,1765577444798,-730.0,0.00016545,2]
[398389563,1765577444807,-500.0,0.00016557,2]
[398389564,1765577444816,-3312.98275168,0.0001656,2]
[398389565,1765577444825,-3500.0,0.0001656,2]
[398389566,1765577444834,-3500.0,0.0001656,2]
[398389567,1765577444845,-3500.0,0.0001656,2]
[398389568,1765577444854,-500.0,0.00016586,2]
[398389569,1765577444863,-767.7842514,0.00016619,2]
[398389570,1765577444873,-730.0,0.00016682,2]
[398389571,1765577444883,-180.81630924,0.00016683,2]
[398389572,1765577444893,-738.83622034,0.00016819,2]
[398389573,1765577444902,-2100.0,0.0001696,2]
[398389574,1765577444912,-760.0,0.00016986,2]
[398389575,1765577444922,-1000.0,0.00016986,2]
[398389576,1765577444933,-3500.0,0.00016986,2]
[398389577,1765577444942,-3500.0,0.00016986,2]
[398389578,1765577444951,-3500.0,0.00016986,2]
[398389579,1765577444962,-84035.16779973,0.00017,2]
[398389580,1765577444972,-4000.0,0.00017108,2]
[398389581,1765577444982,-4000.0,0.00017108,2]
[398389582,1765577444992,-4000.0,0.00017108,2]
[398389583,1765577445001,-1872.70517618,0.0001726,2]
[398389584,1765577445015,-212.73387854,0.00017342,3]
[398389585,1765577445024,-327.73239873,0.000174,14]
[398389586,1765577445034,-162.51971574,0.00017419,2]
[398389587,1765577445043,-2156.0,0.00017469,2]
[398389588,1765577445052,-1360.0,0.00017469,2]
[398389589,1765577445062,-631.0,0.00017469,2]
[398389590,1765577445071,-216.94301312,0.00017508,2]
[398389591,1765577445080,-860.0,0.00017534,2]
[398389592,1765577445089,-1500.0,0.00017534,2]
[398389593,1765577445098,-4000.0,0.00017534,2]
[398389594,1765577445107,-4000.0,0.00017534,2]
[398389595,1765577445116,-4000.0,0.00017534,2]
[398389596,1765577445126,-2128.62842795,0.000176,2]
[398389597,1765577445135,-4500.0,0.00017656,2]
[398389598,1765577445145,-1295.50482274,0.00017656,2]
[398389599,1765577445154,-4500.0,0.00017656,2]
[398389600,1765577445163,-12196.4642311,0.0001778,2]
[398389601,1765577445173,-250000.0,0.000178,3]
[398389602,1765577445184,-599.99999983,0.0001788,2]
[398389603,1765577445194,-231.0,0.0001793,2]
[398389604,1765577445203,-300.0,0.00018,3]
[398389605,1765577445213,-28478.63702678,0.00018,2]
[398389606,1765577445223,-10589.0,0.00018,2]
[398389607,1765577445232,-506.95766556,0.00018,2]
[398389608,1765577445241,-160.43557243,0.0001805,2]
[398389609,1765577445251,-960.0,0.00018082,2]
[398389610,1765577445260,-2000.0,0.00018082,2]
[398389611,1765577445269,-2726.91492213,0.00018082,2]
[398389612,1765577445279,-4500.0,0.00018082,2]
[398389613,1765577445288,-4500.0,0.00018082,2]
[398389614,1765577445298,-5000.0,0.00018204,2]
[398389615,1765577445307,-5000.0,0.00018204,2]
[398389616,1765577445317,-156.0,0.00018438,3]
[398389617,1765577445326,-195.053426,0.00018493,2]
[398389618,1765577445335,-1000.0,0.000185,2]
[398389619,1765577445345,-500.0,0.00018524,2]
[398389620,1765577445355,-150.0,0.0001863,2]
[398389621,1765577445364,-300.0,0.0001863,2]
[398389622,1765577445374,-450.0,0.0001863,2]
[398389623,1765577445384,-600.0,0.0001863,2]
[398389624,1765577445393,-750.0,0.0001863,2]
[398389625,1765577445403,-825.87716629,0.0001863,2]
[398389626,1765577445412,-1060.0,0.0001863,2]
[398389627,1765577445422,-2500.0,0.0001863,2]
[398389628,1765577445431,-5000.0,0.0001863,2]
[398389629,1765577445440,-5000.0,0.0001863,2]
[398389630,1765577445450,-325.86554847,0.00018752,2]
[398389631,1765577445459,-5500.0,0.00018752,2]
[398389632,1765577445468,-302.8183302,0.000189,2]
[398389633,1765577445477,-689.93907884,0.00019,30]
[398389634,1765577445487,-30392.97889677,0.00019,2]
[398389635,1765577445495,-159.69128902,0.00019,2]
[398389636,1765577445504,-150.79517714,0.00019,2]
[398389637,1765577445513,-1000.0,0.00019,2]
[398389638,1765577445523,-249.04296307,0.00019,2]
[398389639,1765577445532,-302.8183302,0.00019089,2]
[398389640,1765577445542,-1160.0,0.00019178,2]
[398389641,1765577445550,-151.0,0.00019178,2]
[398389642,1765577445559,-151.0,0.00019178,2]
[398389643,1765577445568,-151.0,0.00019178,2]
[398389644,1765577445577,-151.0,0.00019178,2]
[398389645,1765577445586,-153.804358,0.00019178,2]
[398389646,1765577445596,-151.0,0.00019178,2]
[398389647,1765577445605,-151.0,0.00019178,2]
[398389648,1765577445614,-151.0,0.00019178,2]
[398389649,1765577445624,-151.0,0.00019178,2]
[398389650,1765577445633,-151.688009,0.00019178,2]
[398389651,1765577445642,-451.735203,0.00019178,2]
[398389652,1765577445652,-451.735203,0.00019178,2]
[398389653,1765577445661,-451.735203,0.00019178,2]
[398389654,1765577445670,-451.735203,0.00019178,2]
[398389655,1765577445680,-451.735203,0.00019178,2]
[398389656,1765577445689,-451.735203,0.00019178,2]
[398389657,1765577445698,-451.735203,0.00019178,2]
[398389658,1765577445707,-451.735203,0.00019178,2]
[398389659,1765577445716,-451.735203,0.00019178,2]
[398389660,1765577445726,-451.735203,0.00019178,2]
[398389661,1765577445735,-151.0,0.00019178,2]
[398389662,1765577445745,-451.735203,0.00019178,2]
[398389663,1765577445755,-151.0,0.00019178,2]
[398389664,1765577445764,-451.735203,0.00019178,2]
[398389665,1765577445774,-151.0,0.00019178,2]
[398389666,1765577445783,-451.735203,0.00019178,2]
[398389667,1765577445792,-151.0,0.00019178,2]
[398389668,1765577445801,-451.735203,0.00019178,2]
[398389669,1765577445811,-451.735203,0.00019178,2]
[398389670,1765577445820,-451.735203,0.00019178,2]
[398389671,1765577445830,-451.735203,0.00019178,2]
[398389672,1765577445839,-451.735203,0.00019178,2]
[398389673,1765577445848,-451.735203,0.00019178,2]
[398389674,1765577445858,-451.735203,0.00019178,2]
[398389675,1765577445867,-151.0,0.00019178,2]
[398389676,1765577445876,-151.0,0.00019178,2]
[398389677,1765577445886,-151.0,0.00019178,2]
[398389678,1765577445895,-151.0,0.00019178,2]
[398389679,1765577445905,-151.0,0.00019178,2]
[398389680,1765577445914,-151.0,0.00019178,2]
[398389681,1765577445924,-213.595615,0.00019178,2]
[398389683,1765577445934,-151.0,0.00019178,2]
[398389684,1765577445947,-151.0,0.00019178,2]
[398389685,1765577445956,-151.0,0.00019178,2]
[398389686,1765577445967,-263.554128,0.00019178,2]
[398389687,1765577445978,-151.0,0.00019178,2]
[398389688,1765577445987,-151.0,0.00019178,2]
[398389689,1765577445997,-151.0,0.00019178,2]
[398389690,1765577446007,-151.0,0.00019178,2]
[398389691,1765577446019,-151.0,0.00019178,2]
[398389692,1765577446029,-151.0,0.00019178,2]
[398389693,1765577446038,-151.0,0.00019178,2]
[398389694,1765577446047,-151.0,0.00019178,2]
[398389695,1765577446057,-151.796592,0.00019178,2]
[398389696,1765577446066,-262.963386,0.00019178,2]
[398389697,1765577446076,-151.0,0.00019178,2]
[398389698,1765577446085,-151.0,0.00019178,2]
[398389699,1765577446094,-151.0,0.00019178,2]
[398389700,1765577446103,-151.0,0.00019178,2]
[398389701,1765577446112,-151.0,0.00019178,2]
[398389702,1765577446121,-151.0,0.00019178,2]
[398389703,1765577446130,-261.077384,0.00019178,2]
[398389704,1765577446139,-287.715144,0.00019178,2]
[398389705,1765577446148,-151.0,0.00019178,2]
[398389706,1765577446158,-151.0,0.00019178,2]
[398389707,1765577446167,-151.0,0.00019178,2]
[398389708,1765577446178,-151.0,0.00019178,2]
[398389709,1765577446187,-151.0,0.00019178,2]
[398389710,1765577446197,-151.0,0.00019178,2]
[398389711,1765577446207,-151.0,0.00019178,2]
[398389712,1765577446216,-151.0,0.00019178,2]
[398389713,1765577446226,-173.991803,0.00019178,2]
[398389714,1765577446235,-222.59588,0.00019178,2]
[398389716,1765577446245,-222.59588,0.00019178,2]
[398389718,1765577446254,-222.59588,0.00019178,2]
[398389720,1765577446263,-222.59588,0.00019178,2]
[398389722,1765577446273,-222.59588,0.00019178,2]
[398389723,1765577446282,-222.59588,0.00019178,2]
[398389725,1765577446291,-222.59588,0.00019178,2]
[398389727,1765577446299,-222.59588,0.00019178,2]
[398389728,1765577446309,-222.59588,0.00019178,2]
[398389729,1765577446318,-222.59588,0.00019178,2]
[398389730,1765577446328,-222.59588,0.00019178,2]
[398389731,1765577446339,-222.59588,0.00019178,2]
[398389732,1765577446348,-222.59588,0.00019178,2]
[398389733,1765577446359,-222.59588,0.00019178,2]
[398389734,1765577446369,-222.59588,0.00019178,2]
[398389735,1765577446378,-222.59588,0.00019178,2]
[398389736,1765577446388,-222.59588,0.00019178,2]
[398389737,1765577446397,-222.59588,0.00019178,2]
[398389738,1765577446409,-222.59588,0.00019178,2]
[398389740,1765577446418,-222.595887,0.00019178,2]
[398389742,1765577446428,-151.0,0.00019178,2]
[398389744,1765577446437,-151.0,0.00019178,2]
[398389746,1765577446447,-151.0,0.00019178,2]
[398389748,1765577446457,-151.0,0.00019178,2]
[398389750,1765577446466,-151.0,0.00019178,2]
[398389752,1765577446476,-151.0,0.00019178,2]
[398389754,1765577446484,-151.0,0.00019178,2]
[398389756,1765577446493,-151.0,0.00019178,2]
[398389758,1765577446502,-156.517819,0.00019178,2]
[398389759,1765577446511,-151.0,0.00019178,2]
[398389760,1765577446520,-151.0,0.00019178,2]
[398389761,1765577446530,-151.0,0.00019178,2]
[398389762,1765577446539,-151.0,0.00019178,2]
[398389763,1765577446548,-151.0,0.00019178,2]
[398389764,1765577446557,-151.0,0.00019178,2]
[398389765,1765577446567,-151.0,0.00019178,2]
[398389766,1765577446577,-151.0,0.00019178,2]
[398389767,1765577446587,-157.265384,0.00019178,2]
[398389768,1765577446596,-193.207713,0.00019178,2]
[398389769,1765577446606,-151.0,0.00019178,2]
[398389770,1765577446615,-180.530611,0.00019178,2]
[398389771,1765577446624,-151.0,0.00019178,2]
[398389772,1765577446633,-151.0,0.00019178,2]
[398389773,1765577446642,-151.0,0.00019178,2]
[398389774,1765577446652,-151.0,0.00019178,2]
[398389775,1765577446661,-151.0,0.00019178,2]
[398389776,1765577446670,-151.0,0.00019178,2]
[398389777,1765577446679,-151.0,0.00019178,2]
[398389778,1765577446688,-151.0,0.00019178,2]
[398389779,1765577446697,-151.0,0.00019178,2]
[398389781,1765577446707,-154.37832,0.00019178,2]
[398389782,1765577446716,-154.183623,0.00019178,2]
[398389783,1765577446726,-166.300059,0.00019178,2]
[398389784,1765577446735,-151.0,0.00019178,2]
[398389785,1765577446744,-151.0,0.00019178,2]
[398389786,1765577446754,-151.0,0.00019178,2]
[398389787,1765577446763,-151.0,0.00019178,2]
[398389788,1765577446773,-151.0,0.00019178,2]
[398389789,1765577446782,-151.0,0.00019178,2]
[398389790,1765577446792,-151.0,0.00019178,2]
[398389791,1765577446801,-151.0,0.00019178,2]
[398389792,1765577446810,-151.0,0.00019178,2]
[398389793,1765577446820,-151.0,0.00019178,2]
[398389794,1765577446829,-151.0,0.00019178,2]
[398389795,1765577446839,-151.0,0.00019178,2]
[398389796,1765577446849,-151.0,0.00019178,2]
[398389797,1765577446858,-301.887436,0.00019178,2]
[398389798,1765577446867,-363.584419,0.00019178,2]
[398389799,1765577446876,-363.584419,0.00019178,2]
[398389800,1765577446886,-363.584419,0.00019178,2]
[398389801,1765577446895,-363.584419,0.00019178,2]
[398389802,1765577446904,-363.584419,0.00019178,2]
[398389803,1765577446913,-229.017571,0.00019178,2]
[398389804,1765577446923,-363.584419,0.00019178,2]
[398389805,1765577446932,-363.584419,0.00019178,2]
[398389806,1765577446942,-363.584419,0.00019178,2]
[398389807,1765577446952,-363.584419,0.00019178,2]
[398389808,1765577446963,-363.584419,0.00019178,2]
[398389809,1765577446974,-363.584419,0.00019178,2]
[398389810,1765577446983,-363.584419,0.00019178,2]
[398389811,1765577446992,-363.584419,0.00019178,2]
[398389812,1765577447003,-363.584419,0.00019178,2]
[398389813,1765577447012,-363.584419,0.00019178,2]
[398389814,1765577447022,-363.584419,0.00019178,2]
[398389815,1765577447031,-363.584419,0.00019178,2]
[398389816,1765577447041,-363.584419,0.00019178,2]
[398389817,1765577447051,-363.584419,0.00019178,2]
[398389818,1765577447060,-363.584418,0.00019178,2]
[398389819,1765577447069,-151.0,0.00019178,2]
[398389820,1765577447079,-151.0,0.00019178,2]
[398389821,1765577447088,-151.0,0.00019178,2]
[398389822,1765577447097,-151.0,0.00019178,2]
[398389823,1765577447106,-151.0,0.00019178,2]
[398389824,1765577447116,-151.0,0.00019178,2]
[398389825,1765577447125,-151.0,0.00019178,2]
[398389826,1765577447135,-151.0,0.00019178,2]
[398389827,1765577447144,-151.0,0.00019178,2]
[398389828,1765577447153,-151.0,0.00019178,2]
[398389829,1765577447163,-151.0,0.00019178,2]
[398389830,1765577447172,-151.0,0.00019178,2]
[398389831,1765577447181,-272.723793,0.00019178,2]
[398389832,1765577447191,-1062.017478,0.00019178,2]
[398389833,1765577447333,-451.72414239,0.00019178,2]
[398389834,1765577447343,-1000.0,0.00019178,2]
[398389835,1765577447353,-5500.0,0.00019178,2]
[398389836,1765577447362,-2263.79271532,0.00019178,2]
[398389837,1765577447372,-150.0,0.00019178,2]
[398389838,1765577447381,-1302.27,0.000192,2]
[398389839,1765577447391,-302.8183302,0.00019278,2]
[398389840,1765577447400,-6000.0,0.000193,2]
[398389841,1765577447409,-300.0,0.00019315,2]
[398389842,1765577447418,-450.0,0.00019452,2]
[398389843,1765577447428,-302.81833038,0.00019467,2]
[398389844,1765577447437,-1000.0,0.000195,2]
[398389845,1765577447446,-157.0,0.00019534,3]
[398389846,1765577447455,-600.0,0.00019589,2]
[398389847,1765577447464,-500.0,0.0001965,2]
[398389848,1765577447472,-249.04296307,0.0001969,17]
[398389849,1765577447481,-1260.0,0.00019726,2]
[398389850,1765577447491,-1440.76817085,0.00019726,2]
[398389851,1765577447500,-6000.0,0.00019726,2]
[398389852,1765577447509,-701.86962225,0.00019726,2]
[398389853,1765577447519,-1896.30767149,0.00019848,2]
[398389854,1765577447529,-160.43557243,0.000199,2]
[398389855,1765577447540,-258.0,0.0001993,2]
[398389856,1765577447550,-623.49695394,0.0001995,30]
[398389857,1765577447560,-2000.0,0.0002,7]
[398389858,1765577447570,-19628.35871347,0.0002,30]
[398389859,1765577447583,-268.45979017,0.0002,30]
[398389860,1765577447602,-150.0,0.0002,2]
[398389861,1765577447621,-363.98922356,0.0002,30]
[398389862,1765577447631,-648.30736761,0.0002,30]
[398389863,1765577447640,-96207.56183472,0.0002,2]
[398389864,1765577447650,-1000.0,0.0002,2]
[398389865,1765577447659,-150.0,0.0002,10]
[398389866,1765577447668,-150.0,0.0002,2]
[398389867,1765577447677,-1500.0,0.00020187,2]
[398389868,1765577447686,-6500.0,0.00020274,2]
[398389869,1765577447695,-1360.0,0.00020274,2]
[398389870,1765577447705,-8631.81052035,0.00020359,2]
[398389871,1765577447714,-249.04296307,0.0002038,32]
[398389872,1765577447723,-333.33333333,0.00020392,32]
[398389873,1765577447732,-2000.0,0.000205,7]
[398389874,1765577447742,-1087.642641,0.00020548,2]
[398389875,1765577447751,-158.0,0.0002063,3]
[398389876,1765577447760,-7000.0,0.00020822,2]
[398389877,1765577447770,-1460.0,0.00020822,2]
[398389878,1765577447779,-1599.766996,0.0002086,5]
[398389879,1765577447788,-1000.0,0.0002088,5]
[398389880,1765577447798,-25475.69,0.000209,2]
[398389881,1765577447807,-1000.0,0.000209,5]
[398389882,1765577447816,-1000.0,0.0002092,5]
[398389883,1765577447825,-1000.0,0.0002094,5]
[398389884,1765577447836,-620.1748477,0.00020948,30]
[398389885,1765577447845,-1000.0,0.0002096,5]
[398389886,1765577447854,-1000.0,0.0002098,5]
[398389887,1765577447863,-500.0,0.0002099,2]
[398389888,1765577447873,-500.0,0.0002099,2]
[398389889,1765577447882,-2000.0,0.00021,7]
[398389890,1765577447891,-10000.0,0.00021,5]
[398389891,1765577447901,-276.20881535,0.00021,2]
[398389892,1765577447910,-50000.0,0.00021,2]
[398389893,1765577447919,-1302.27,0.00021,2]
[398389894,1765577447929,-47172.7376319,0.00021,2]
[398389895,1765577447939,-169.50778645,0.00021,10]
[398389896,1765577447951,-3000.0,0.00021,2]
[398389897,1765577447963,-1000.0,0.00021,5]
[398389898,1765577447972,-150.0,0.00021,2]
[398389899,1765577447982,-3000.0,0.0002101,2]
[398389900,1765577447991,-3000.0,0.0002102,2]
[398389901,1765577448003,-3000.0,0.0002103,2]
[398389902,1765577448014,-3000.0,0.0002104,2]
[398389903,1765577448025,-3000.0,0.0002105,2]
[398389904,1765577448036,-3000.0,0.0002106,2]
[398389905,1765577448045,-3000.0,0.0002107,2]
[398389906,1765577448055,-249.04296307,0.0002107,48]
[398389907,1765577448065,-4473.438152,0.0002108,2]
[398389908,1765577448074,-308.0,0.00021313,120]
[398389909,1765577448083,-2000.00665975,0.00021318,2]
[398389910,1765577448093,-6687.49831351,0.0002137,2]
[398389911,1765577448103,-1560.0,0.0002137,2]